bitfinex/quotes_BTCUSD_20250124
["timestamp","ask_amount","ask_price","bid_price","bid_amount"]
[1737730578379,0.14179,105790.0,105770.0,0.539962]
[1737730578380,0.330847,105790.0,105770.0,0.539962]
[1737730578807,0.330847,105790.0,105780.0,0.141803]
[1737730578986,0.330847,105790.0,105770.0,0.53996]
[1737730579160,0.141803,105780.0,105770.0,0.02]
[1737730579361,0.330883,105780.0,105760.0,0.330915]
[1737730579574,0.378161,105780.0,105760.0,0.330918]
[1737730579768,0.330892,105780.0,105770.0,0.02]
[1737730579931,0.141812,105780.0,105770.0,0.02]
[1737730580350,0.330886,105780.0,105770.0,0.02]
[1737730580997,0.47547429,105790.0,105770.0,0.54093541]
[1737730580998,0.330863,105790.0,105770.0,0.54093541]
[1737730581209,0.141801,105790.0,105770.0,0.53999]
[1737730581419,0.330855,105790.0,105770.0,0.350893]
[1737730581620,0.141801,105790.0,105780.0,0.141803]
[1737730581814,0.141801,105790.0,105770.0,0.539981]
[1737730582073,0.54485491,105800.0,105780.0,0.141803]
[1737730582310,0.7839892,105800.0,105780.0,0.330871]
[1737730582517,0.5949402,105800.0,105780.0,0.330865]
[1737730582723,0.7839842,105800.0,105780.0,0.519928]
[1737730582926,0.14179,105790.0,105780.0,0.141803]
[1737730583338,0.330846,105790.0,105770.0,0.350888]
[1737730583545,0.330846,105790.0,105770.0,0.539969]
[1737730583751,0.14179,105790.0,105780.0,0.141803]
[1737730583954,0.81527378,105800.0,105780.0,0.330865]
[1737730583955,0.76800678,105800.0,105780.0,0.330865]
[1737730584159,0.76800678,105800.0,105780.0,0.599128]
[1737730584381,0.00079049,105800.0,105790.0,0.14179]
[1737730584593,0.45536286,105810.0,105790.0,0.14179]
[1737730584799,0.00014768,105810.0,105800.0,0.141776]
[1737730585212,0.00014768,105810.0,105800.0,0.161776]
[1737730586063,0.00014768,105810.0,105800.0,0.16272106]
[1737730587542,0.00014768,105810.0,105800.0,1.09654118]
[1737730587753,0.00014768,105810.0,105800.0,1.09559612]
[1737730588808,0.00014768,105810.0,105800.0,0.286176]
[1737730589236,0.00014768,105810.0,105800.0,0.266176]
[1737730589447,0.14191068,105810.0,105800.0,0.0454]
[1737730589834,0.14191068,105810.0,105800.0,0.207176]
[1737730590035,0.14191068,105810.0,105800.0,0.0654]
[1737730590280,0.14191068,105810.0,105800.0,0.0454]
[1737730590697,0.00014768,105810.0,105800.0,0.207176]
[1737730590911,0.00044526,105810.0,105800.0,0.207176]
[1737730591737,0.14220826,105810.0,105800.0,0.0654]
[1737730592578,0.00044526,105810.0,105800.0,0.207176]
[1737730593607,0.23955555,105810.0,105790.0,0.330831]
[1737730593790,0.141776,105800.0,105780.0,1.9587359]
[1737730594025,0.42859555,105810.0,105790.0,0.35083]
[1737730594231,0.09779255,105810.0,105800.0,0.141776]
[1737730594436,0.00044526,105810.0,105800.0,0.141776]
[1737730594677,0.00044526,105810.0,105800.0,0.16272106]
[1737730595297,0.00044526,105810.0,105800.0,0.24162106]
[1737730595428,0.00044526,105810.0,105800.0,1.09819612]
[1737730595636,0.00044526,105810.0,105800.0,1.32554341]
[1737730595840,0.00044526,105810.0,105800.0,1.34554341]
[1737730596849,0.000298,105830.0,105820.0,0.28755]
[1737730597073,0.000298,105830.0,105820.0,1.67532519]
[1737730597489,0.000298,105830.0,105820.0,1.82532519]
[1737730598728,0.000298,105830.0,105820.0,1.80532519]
[1737730598934,0.000298,105830.0,105820.0,1.82532519]
[1737730599143,0.000298,105830.0,105820.0,1.22697012]
[1737730599373,0.000298,105830.0,105820.0,1.34431741]
[1737730599579,0.000298,105830.0,105820.0,1.22697012]
[1737730599786,0.000298,105830.0,105820.0,0.41755]
[1737730601238,0.000298,105830.0,105820.0,0.26755]
[1737730601951,0.000298,105830.0,105820.0,0.28755]
[1737730602559,0.000298,105830.0,105820.0,0.26755]
[1737730604225,0.000298,105830.0,105820.0,0.28755]
[1737730604440,0.000298,105830.0,105820.0,0.28638251]
[1737730605458,0.023,105870.0,105840.0,0.02]
[1737730605664,0.14186054,105850.0,105840.0,0.02]
[1737730605911,0.09749483,105850.0,105830.0,0.188972]
[1737730606048,0.23920583,105850.0,105830.0,0.330703]
[1737730606431,0.09749483,105850.0,105830.0,0.350703]
[1737730607245,0.09749483,105850.0,105840.0,0.0774]
[1737730607449,0.000298,105940.0,105910.0,0.02]
[1737730607660,0.01896429,105920.0,105910.0,0.151629]
[1737730607870,0.01896429,105920.0,105910.0,0.26992032]
[1737730608079,1.5007903,105940.0,105910.0,0.171629]
[1737730608316,1.59813759,105940.0,105910.0,0.151629]
[1737730608516,0.09734729,105930.0,105890.0,0.360512]
[1737730608729,0.24734729,105930.0,105890.0,0.350512]
[1737730608917,0.57776029,105930.0,105890.0,0.141654]
[1737730609130,0.09734729,105920.0,105890.0,0.14165]
[1737730609331,0.09734729,105920.0,105890.0,0.350513]
[1737730609544,0.09734729,105920.0,105900.0,0.14164]
[1737730609545,0.24734729,105920.0,105900.0,0.14164]
[1737730609774,0.24734729,105920.0,105890.0,0.330513]
[1737730609974,1.5,105910.0,105900.0,0.141643]
[1737730610217,0.09734729,105910.0,105890.0,0.519376]
[1737730610881,1.59734729,105900.0,105880.0,0.330553]
[1737730611143,0.09734729,105900.0,105880.0,0.519436]
[1737730611875,0.09734729,105900.0,105890.0,0.141656]
[1737730612151,0.15,105920.0,105900.0,0.141643]
[1737730612361,0.24783929,105920.0,105900.0,0.330489]
[1737730612697,0.24783929,105920.0,105910.0,0.141629]
[1737730612698,0.09783929,105920.0,105910.0,0.141629]
[1737730612903,0.000492,105920.0,105910.0,0.141629]
[1737730613746,0.000492,105920.0,105910.0,0.17257314]
[1737730614576,0.000492,105920.0,105910.0,0.14257314]
[1737730614810,0.000492,105920.0,105910.0,0.161629]
[1737730615037,0.000492,105920.0,105910.0,0.141629]
[1737730615477,0.000492,105920.0,105910.0,0.161629]
[1737730615904,0.000492,105920.0,105910.0,0.17257315]
[1737730616309,0.000492,105920.0,105910.0,0.22167315]
[1737730616515,0.000492,105920.0,105910.0,0.220729]
[1737730616717,0.33520374,105920.0,105900.0,0.330488]
[1737730617553,0.09783929,105920.0,105900.0,0.330488]
[1737730617955,0.09783929,105920.0,105900.0,0.350488]
[1737730618160,0.09783929,105920.0,105900.0,0.141643]
[1737730618380,0.09734729,105910.0,105880.0,0.473573]
[1737730618609,0.09734729,105910.0,105880.0,0.33055]
[1737730618610,0.42783629,105910.0,105880.0,0.33055]
[1737730619024,0.61668329,105910.0,105880.0,0.519442]
[1737730619226,0.56786545,105900.0,105870.0,0.588866]
[1737730619428,0.66521274,105900.0,105870.0,0.588866]
[1737730619843,0.66521274,105900.0,105870.0,0.78777]
[1737730620045,0.66521274,105900.0,105870.0,0.598868]
[1737730620260,0.09734729,105890.0,105870.0,0.399971]
[1737730620470,0.28622229,105890.0,105860.0,0.330603]
[1737730620678,0.164674,105880.0,105850.0,0.626019]
[1737730620890,0.26202129,105880.0,105850.0,0.787708]
[1737730621095,0.12034729,105880.0,105860.0,0.141691]
[1737730621301,0.519425,105890.0,105860.0,0.330619]
[1737730621302,0.141665,105890.0,105860.0,0.330619]
[1737730621453,0.23901229,105890.0,105860.0,0.519537]
[1737730621670,0.42788829,105890.0,105860.0,0.519537]
[1737730621860,0.09734729,105880.0,105860.0,0.330619]
[1737730622057,0.33068851,105890.0,105860.0,0.519539]
[1737730622315,0.23901829,105880.0,105860.0,0.141695]
[1737730622904,0.23901729,105880.0,105860.0,0.141695]
[1737730623103,0.09734729,105880.0,105860.0,0.330621]
[1737730623671,0.00014751,105890.0,105870.0,0.330584]
[1737730623889,0.0974948,105890.0,105880.0,0.141669]
[1737730624098,0.0974948,105890.0,105870.0,0.519484]
[1737730624305,0.0974948,105890.0,105880.0,0.141669]
[1737730624517,0.0974948,105890.0,105870.0,0.519483]
[1737730624788,0.00014751,105890.0,105870.0,0.529483]
[1737730625001,0.00014751,105890.0,105870.0,0.519483]
[1737730625201,0.09734729,105880.0,105860.0,0.350606]
[1737730625421,0.09734729,105880.0,105870.0,0.141683]
[1737730626059,0.09734729,105880.0,105860.0,0.53952]
[1737730626236,0.09734729,105880.0,105860.0,0.51952]
[1737730626440,0.09734729,105880.0,105860.0,0.330603]
[1737730626658,0.09734729,105880.0,105860.0,0.519531]
[1737730627498,0.09734729,105880.0,105860.0,0.330603]
[1737730627706,0.09734729,105880.0,105860.0,0.519523]
[1737730627911,0.09734729,105880.0,105860.0,0.330603]
[1737730628448,0.00014751,105890.0,105870.0,0.330582]
[1737730628736,0.0974948,105890.0,105870.0,0.330588]
[1737730628990,0.00014751,105890.0,105860.0,0.03]
[1737730629243,0.00014751,105890.0,105880.0,0.141669]
[1737730630494,0.2474948,105890.0,105870.0,0.330577]
[1737730630744,0.2474948,105890.0,105870.0,0.519479]
[1737730630998,0.15014751,105890.0,105870.0,0.519478]
[1737730631252,0.00014751,105890.0,105880.0,0.151669]
[1737730631499,0.00014751,105890.0,105880.0,0.37506073]
[1737730631740,0.00014751,105890.0,105880.0,0.39411629]
[1737730632488,0.00014751,105890.0,105880.0,0.296769]
[1737730635433,0.00014751,105890.0,105880.0,0.197969]
[1737730635640,0.00014751,105890.0,105880.0,0.217969]
[1737730636574,0.00014751,105890.0,105880.0,0.31531629]
[1737730637331,0.00014751,105890.0,105880.0,1.02722407]
[1737730637540,0.00014751,105890.0,105880.0,1.83664419]
[1737730637747,0.00014751,105890.0,105880.0,0.54621629]
[1737730638480,0.00014751,105890.0,105880.0,0.52621629]
[1737730638890,0.00014751,105890.0,105880.0,0.428869]
[1737730639098,0.00014751,105890.0,105880.0,0.298869]
[1737730639296,0.00014751,105890.0,105880.0,0.278869]
[1737730639473,0.00014751,105890.0,105880.0,0.268869]
[1737730640028,0.00014751,105890.0,105880.0,0.187969]
[1737730640400,0.00014751,105890.0,105880.0,0.19891342]
[1737730640610,0.00014751,105890.0,105880.0,0.187969]
[1737730640811,0.00014751,105890.0,105880.0,0.197969]
[1737730640999,0.00014751,105890.0,105880.0,0.217969]
[1737730641220,0.00044487,105890.0,105880.0,0.187969]
[1737730641646,0.00044487,105890.0,105880.0,0.207969]
[1737730642023,0.00044487,105890.0,105880.0,0.217969]
[1737730643011,0.00044487,105890.0,105880.0,0.31531629]
[1737730644124,0.00044487,105890.0,105880.0,0.39651629]
[1737730645435,0.141677,105880.0,105860.0,0.1386]
[1737730645646,0.23749928,105880.0,105860.0,0.400112]
[1737730645930,0.23749928,105880.0,105870.0,0.141683]
[1737730646148,0.23749928,105880.0,105860.0,0.589029]
[1737730646149,0.23749928,105880.0,105860.0,0.58903]
[1737730646361,0.33484657,105880.0,105860.0,0.191193]
[1737730646793,0.01762344,105870.0,105860.0,0.238427]
[1737730647002,0.01762344,105870.0,105860.0,0.0495]
[1737730647433,0.01762344,105870.0,105850.0,0.88789929]
[1737730647847,0.23749928,105860.0,105850.0,0.35833629]
[1737730648061,0.37919528,105860.0,105850.0,0.35833629]
[1737730648273,0.73498073,105860.0,105850.0,0.35833629]
[1737730648491,0.72764257,105860.0,105850.0,0.35833629]
[1737730649581,0.62654257,105860.0,105850.0,0.35833629]
[1737730649785,0.48484657,105860.0,105850.0,0.35833629]
[1737730650234,0.37919528,105860.0,105850.0,0.35833629]
[1737730650439,0.33484657,105860.0,105850.0,0.35833629]
[1737730651511,0.47654257,105860.0,105850.0,0.35833629]
[1737730651730,0.64954257,105860.0,105850.0,0.35833629]
[1737730652802,0.52922228,105840.0,105830.0,0.0001416]
[1737730653011,0.62656957,105840.0,105830.0,0.0001416]
[1737730654076,0.62656957,105840.0,105830.0,0.00028914]
[1737730655308,0.64956957,105840.0,105830.0,0.00028914]
[1737730659116,0.38907029,105840.0,105830.0,0.00028914]
[1737730659828,0.54337105,105840.0,105830.0,0.00028914]
[1737730661116,0.79597181,105840.0,105830.0,0.00028914]
[1737730662399,0.141784,105800.0,105780.0,0.141803]
[1737730662610,0.29609076,105790.0,105780.0,0.00049249]
[1737730662877,0.23913729,105790.0,105780.0,0.00049249]
[1737730663342,0.09734729,105790.0,105780.0,0.14229549]
[1737730663558,0.669823,105810.0,105780.0,0.52042649]
[1737730663770,0.09734729,105800.0,105780.0,0.52041749]
[1737730664202,0.669825,105810.0,105790.0,0.14179]
[1737730664203,0.480795,105810.0,105790.0,0.14179]
[1737730664417,0.09734729,105800.0,105780.0,0.52041749]
[1737730664824,0.09734729,105800.0,105780.0,0.33135649]
[1737730665055,0.09734729,105800.0,105780.0,0.52041749]
[1737730665264,0.09734729,105800.0,105780.0,0.70947949]
[1737730665477,0.09734729,105800.0,105780.0,0.52041749]
[1737730665698,0.09734729,105800.0,105790.0,0.14179]
[1737730666117,0.09734729,105800.0,105780.0,0.52041749]
[1737730666322,0.09734729,105800.0,105780.0,0.70947849]
[1737730666525,0.09734729,105800.0,105780.0,0.52041749]
[1737730666835,0.42816129,105800.0,105780.0,0.33135649]
[1737730667069,0.14179,105790.0,105780.0,0.00049249]
[1737730668332,0.23913729,105790.0,105780.0,0.00049249]
[1737730669411,0.23886598,105790.0,105780.0,0.00049249]
[1737730669638,0.38886598,105790.0,105780.0,0.00049249]
[1737730673253,0.26381374,105790.0,105780.0,0.14229549]
[1737730673686,0.40560374,105790.0,105780.0,0.14229549]
[1737730674090,0.40560374,105790.0,105780.0,0.00049249]
[1737730675652,0.40560374,105790.0,105780.0,0.00063459]
[1737730676495,0.40560374,105790.0,105780.0,0.14243759]
[1737730677372,0.24734729,105790.0,105780.0,0.14243759]
[1737730677581,0.24734729,105790.0,105760.0,0.0001417]
[1737730677582,0.567247,105780.0,105760.0,0.0001417]
[1737730677789,0.23916429,105770.0,105760.0,0.00028938]
[1737730677975,0.38916429,105770.0,105760.0,0.00028938]
[1737730679651,0.15,105770.0,105760.0,0.14211938]
[1737730679860,0.15,105770.0,105760.0,0.18791938]
[1737730680065,0.15,105770.0,105760.0,0.26861938]
[1737730680714,0.480856,105790.0,105760.0,0.26861938]
[1737730680931,0.09734729,105790.0,105780.0,0.141803]
[1737730681360,0.33113242,105800.0,105780.0,0.33086]
[1737730681567,0.23913729,105790.0,105780.0,0.141801]
[1737730681811,0.15,105780.0,105770.0,0.189087]
[1737730682020,0.291803,105780.0,105770.0,0.189087]
[1737730682251,0.24734729,105780.0,105770.0,0.189087]
[1737730682480,0.57822229,105780.0,105760.0,0.83589538]
[1737730682704,0.24734729,105780.0,105770.0,0.141817]
[1737730683558,0.15,105780.0,105770.0,0.141817]
[1737730686130,0.00029842,105800.0,105790.0,0.27729]
[1737730686324,0.00029821,105850.0,105790.0,0.27729]
[1737730686325,0.00029821,105850.0,105840.0,0.141723]
[1737730686537,0.0976455,105850.0,105840.0,0.141723]
[1737730686757,0.00029821,105850.0,105840.0,0.151723]
[1737730687185,0.00029821,105850.0,105840.0,0.141723]
[1737730687621,0.00079,105850.0,105840.0,0.141723]
[1737730689747,0.00079,105850.0,105840.0,0.39791502]
[1737730690002,0.00079,105850.0,105840.0,0.39697029]
[1737730690851,0.09,105860.0,105850.0,0.03]
[1737730691059,0.09014749,105860.0,105850.0,0.31800086]
[1737730691270,0.09014749,105860.0,105850.0,0.46705629]
[1737730691486,0.09014749,105860.0,105850.0,0.94806407]
[1737730692160,0.09014749,105860.0,105850.0,1.02476407]
[1737730693461,0.09014749,105860.0,105850.0,1.00476407]
[1737730693663,0.09014749,105860.0,105850.0,1.02476407]
[1737730695383,0.09014749,105860.0,105850.0,1.04029887]
[1737730696944,0.04531585,105910.0,105900.0,0.141643]
[1737730697099,0.09749483,105910.0,105900.0,0.141643]
[1737730697298,0.09749483,105910.0,105900.0,0.330497]
[1737730697506,0.24749483,105910.0,105900.0,0.330497]
[1737730699713,0.24749483,105910.0,105880.0,0.503563]
[1737730699714,0.13979,105900.0,105880.0,0.503563]
[1737730700032,0.09734729,105900.0,105890.0,0.141656]
[1737730700571,0.15044554,105910.0,105900.0,0.141643]
[1737730700720,0.24779283,105910.0,105900.0,0.141643]
[1737730701133,0.00044554,105910.0,105900.0,0.141643]
[1737730702551,0.141688,105870.0,105850.0,0.3307859]
[1737730702753,0.09734729,105870.0,105860.0,0.141696]
[1737730702956,0.188887,105890.0,105860.0,0.141696]
[1737730703159,0.23901729,105880.0,105850.0,0.2190799]
[1737730703366,0.3306,105870.0,105850.0,0.1618439]
[1737730703568,0.23903629,105870.0,105850.0,0.3507899]
[1737730703770,0.09734729,105870.0,105850.0,0.5397359]
[1737730704182,0.23903029,105870.0,105850.0,0.3507899]
[1737730704374,0.42794429,105870.0,105850.0,0.0001419]
[1737730704559,0.42794429,105870.0,105850.0,0.1418489]
[1737730704999,0.42794429,105870.0,105850.0,0.0001419]
[1737730705228,0.24734729,105870.0,105850.0,0.3307969]
[1737730705473,0.330541,105890.0,105860.0,0.141696]
[1737730705714,0.23901729,105880.0,105860.0,0.519543]
[1737730705958,0.38901729,105880.0,105860.0,0.330616]
[1737730706901,0.57791029,105880.0,105860.0,0.141696]
[1737730707218,0.76681329,105880.0,105850.0,0.5497189]
[1737730707726,0.141686,105870.0,105850.0,0.3407799]
[1737730707969,0.141686,105870.0,105850.0,0.0001419]
[1737730707970,0.141696,105860.0,105850.0,0.0001419]
[1737730708234,0.23904329,105860.0,105850.0,0.0001419]
[1737730712742,0.09734729,105860.0,105850.0,0.1418509]
[1737730712982,0.519475,105880.0,105860.0,0.330618]
[1737730713223,0.09734729,105870.0,105860.0,0.188927]
[1737730713488,0.23903029,105870.0,105850.0,0.6047219]
[1737730713716,0.44547343,105870.0,105850.0,0.6047219]
[1737730714174,0.44547343,105870.0,105850.0,0.6147219]
[1737730714406,0.141696,105860.0,105850.0,0.0001419]
[1737730714614,0.23904329,105860.0,105850.0,0.0001419]
[1737730717633,0.38904329,105860.0,105850.0,0.0001419]
[1737730719281,0.38904329,105860.0,105850.0,0.1418509]
[1737730719491,0.38904329,105860.0,105850.0,0.0001419]
[1737730722915,0.38904329,105860.0,105850.0,0.1418509]
[1737730723124,0.24734729,105860.0,105850.0,0.1418509]
[1737730723340,0.141675,105880.0,105870.0,0.141683]
[1737730723575,0.23902229,105880.0,105870.0,0.141683]
[1737730723790,0.38902229,105880.0,105870.0,0.141683]
[1737730724272,0.15,105870.0,105860.0,0.377836]
[1737730724482,0.38903029,105870.0,105860.0,0.377836]
[1737730725760,0.24734729,105870.0,105860.0,0.377836]
[1737730725960,0.38903029,105870.0,105860.0,0.377836]
[1737730726556,0.38903029,105870.0,105860.0,0.188916]
[1737730727914,0.141696,105860.0,105850.0,0.3766779]
[1737730728130,0.23904329,105860.0,105850.0,0.1418439]
[1737730728618,0.09734729,105860.0,105850.0,0.1418439]
[1737730729664,0.23904329,105860.0,105850.0,0.1418439]
[1737730729874,0.09734729,105860.0,105850.0,0.1418439]
[1737730730788,0.23904329,105860.0,105850.0,0.1418439]
[1737730730921,0.09734729,105860.0,105850.0,0.1418439]
[1737730731332,0.480612,105870.0,105860.0,0.141696]
[1737730731583,0.38904129,105870.0,105860.0,0.141696]
[1737730732216,0.24734729,105870.0,105860.0,0.141696]
[1737730732645,0.3447368,105890.0,105880.0,0.141669]
[1737730732854,0.3447368,105890.0,105870.0,0.330574]
[1737730732855,0.141669,105880.0,105870.0,0.330574]
[1737730733046,0.38901629,105880.0,105870.0,0.141678]
[1737730733393,0.141683,105870.0,105860.0,0.223696]
[1737730733606,0.23903029,105870.0,105860.0,0.223696]
[1737730734417,0.23903029,105870.0,105860.0,0.223838]
[1737730734818,0.48460522,105870.0,105860.0,0.000142]
[1737730735029,0.38903029,105870.0,105860.0,0.000142]
[1737730735227,0.49013029,105870.0,105860.0,0.000142]
[1737730735825,0.46713029,105870.0,105860.0,0.000142]
[1737730736753,0.38903029,105870.0,105860.0,0.000142]
[1737730740091,0.46533029,105870.0,105860.0,0.000142]
[1737730740321,1.96533029,105870.0,105860.0,0.000142]
[1737730740626,0.48833029,105870.0,105860.0,0.000142]
[1737730741242,0.50250868,105870.0,105860.0,0.000142]
[1737730741667,0.47950868,105870.0,105860.0,0.000142]
[1737730744087,0.40320868,105870.0,105860.0,0.000142]
[1737730744219,0.50055597,105870.0,105860.0,0.000142]
[1737730744865,0.40320868,105870.0,105860.0,0.000142]
[1737730745069,0.26152568,105870.0,105860.0,0.000142]
[1737730745227,0.40320868,105870.0,105860.0,0.000142]
[1737730746690,0.26152568,105870.0,105860.0,0.141838]
[1737730746863,0.09734729,105870.0,105860.0,0.141838]
[1737730747087,0.34375227,105890.0,105880.0,0.141527]
[1737730747282,0.25222456,105890.0,105880.0,0.141527]
[1737730747887,0.15,105880.0,105870.0,0.377795]
[1737730748263,0.24734729,105880.0,105870.0,0.377795]
[1737730748423,0.188875,105890.0,105870.0,0.188897]
[1737730748597,0.61677029,105890.0,105870.0,0.33057]
[1737730748993,0.42788729,105890.0,105880.0,0.141669]
[1737730749201,0.61677029,105890.0,105870.0,0.519472]
[1737730749414,0.42788729,105890.0,105870.0,0.519472]
[1737730750125,0.42788729,105890.0,105870.0,0.708382]
[1737730750331,0.42788729,105890.0,105870.0,0.519472]
[1737730750555,0.23901229,105890.0,105880.0,0.218869]
[1737730750753,0.09734729,105890.0,105880.0,0.218869]
[1737730752894,0.09734729,105890.0,105880.0,0.141669]
[1737730753100,0.141642,105910.0,105890.0,0.141646]
[1737730753306,0.141656,105890.0,105880.0,0.124]
[1737730753505,0.23900329,105890.0,105880.0,0.124]
[1737730754286,0.23900329,105890.0,105860.0,0.266726]
[1737730754287,0.330577,105880.0,105860.0,0.266726]
[1737730754516,0.23903029,105870.0,105860.0,0.125042]
[1737730754727,0.23903029,105870.0,105860.0,0.075842]
[1737730756628,0.25219495,105870.0,105860.0,0.075842]
[1737730756838,0.40219495,105870.0,105860.0,0.000142]
[1737730760634,0.26051195,105870.0,105860.0,0.141838]
[1737730760839,0.11051195,105870.0,105860.0,0.141838]
[1737730761041,0.25219495,105870.0,105860.0,0.141838]
[1737730761599,0.330577,105880.0,105860.0,0.411654]
[1737730761806,0.42792429,105880.0,105860.0,0.600575]
[1737730762009,0.62994673,105880.0,105860.0,0.600582]
[1737730762206,0.44104473,105880.0,105860.0,0.600569]
[1737730762408,0.59104473,105880.0,105870.0,0.141683]
[1737730762623,0.40214973,105880.0,105870.0,0.141683]
[1737730762817,0.26046873,105880.0,105870.0,0.141683]
[1737730763069,0.11046873,105880.0,105870.0,0.141683]
[1737730763264,0.25213773,105880.0,105870.0,0.141683]
[1737730763656,0.11046873,105880.0,105870.0,0.141683]
[1737730763867,0.25213773,105880.0,105870.0,0.141683]
[1737730764627,0.25213773,105880.0,105860.0,0.610569]
[1737730764628,0.44103273,105880.0,105860.0,0.610569]
[1737730764812,0.44103273,105880.0,105860.0,0.421653]
[1737730764963,0.62993573,105880.0,105860.0,0.411653]
[1737730765351,0.62993573,105880.0,105860.0,0.600574]
[1737730765554,2.12993573,105880.0,105860.0,0.600574]
[1737730765806,1.94103273,105880.0,105860.0,0.789495]
[1737730766484,1.94103273,105880.0,105860.0,0.600574]
[1737730766680,1.94103273,105880.0,105870.0,0.141683]
[1737730766681,0.09734729,105880.0,105870.0,0.141683]
[1737730767261,0.42791329,105880.0,105860.0,0.600574]
[1737730767509,0.23901629,105880.0,105870.0,0.141683]
[1737730767659,0.09734729,105880.0,105870.0,0.141683]
[1737730767885,0.09734729,105880.0,105860.0,0.600574]
[1737730768087,0.42791829,105880.0,105860.0,0.600573]
[1737730768301,0.42791829,105880.0,105860.0,0.789492]
[1737730769142,0.61681829,105880.0,105860.0,0.600572]
[1737730769297,0.42791829,105880.0,105860.0,0.600572]
[1737730769519,0.09734729,105880.0,105870.0,0.141683]
[1737730769717,2.03314753,105890.0,105870.0,0.141683]
[1737730769926,2.03314753,105890.0,105870.0,0.330583]
[1737730769927,1.94161082,105890.0,105870.0,0.330583]
[1737730770124,1.76106482,105890.0,105880.0,0.141669]
[1737730770356,0.00029821,105890.0,105880.0,0.298669]
[1737730771149,0.00029821,105890.0,105880.0,0.268669]
[1737730771780,0.377725,105900.0,105880.0,0.646444]
[1737730771990,0.141656,105890.0,105880.0,0.268669]
[1737730772203,0.23900329,105890.0,105880.0,0.268669]
[1737730773238,1.73900329,105890.0,105880.0,0.268669]
[1737730773440,1.73900329,105890.0,105880.0,0.223669]
[1737730774178,0.23900329,105890.0,105880.0,0.223669]
[1737730774776,0.23900329,105890.0,105880.0,0.082]
[1737730775007,0.141669,105880.0,105870.0,0.188897]
[1737730775183,0.141683,105870.0,105860.0,0.315057]
[1737730775406,0.141683,105870.0,105860.0,0.126142]
[1737730775808,0.40235294,105870.0,105860.0,0.000142]
[1737730776009,0.38903029,105870.0,105860.0,0.000142]
[1737730776828,1.88903029,105870.0,105860.0,0.000142]
[1737730777027,1.91203029,105870.0,105860.0,0.000142]
[1737730780066,1.88903029,105870.0,105860.0,0.000142]
[1737730780292,0.40224518,105870.0,105860.0,0.000142]
[1737730781437,0.42524518,105870.0,105860.0,0.000142]
[1737730781651,0.314696,105860.0,105850.0,0.0001419]
[1737730781856,0.41204329,105860.0,105850.0,0.0001419]
[1737730782569,0.28824329,105860.0,105850.0,0.0001419]
[1737730783576,0.28824329,105860.0,105800.0,0.0773]
[1737730783577,0.141763,105810.0,105800.0,0.0773]
[1737730783777,0.23911029,105810.0,105800.0,0.0773]
[1737730784005,0.23911029,105810.0,105800.0,0.00049179]
[1737730784450,0.25163029,105810.0,105800.0,0.00049179]
[1737730784675,0.141817,105770.0,105760.0,0.20727222]
[1737730784916,0.23916429,105770.0,105760.0,0.20727222]
[1737730785555,0.23916429,105770.0,105750.0,0.3310948]
[1737730785556,0.15,105760.0,105750.0,0.0001418]
[1737730785769,0.38917729,105760.0,105750.0,0.0001418]
[1737730785983,0.38917729,105760.0,105750.0,0.00028929]
[1737730786404,0.38917729,105760.0,105750.0,0.14213229]
[1737730786616,0.38917729,105760.0,105750.0,0.00028929]
[1737730787809,0.09734729,105760.0,105750.0,0.21943229]
[1737730788216,0.519975,105780.0,105760.0,0.330925]
[1737730788410,0.09734729,105770.0,105760.0,0.141823]
[1737730788649,0.23916429,105770.0,105750.0,0.40854529]
[1737730788783,0.42825729,105770.0,105750.0,0.41854529]
[1737730788963,0.23916429,105770.0,105760.0,0.14183]
[1737730789183,0.09734729,105770.0,105760.0,0.14183]
[1737730789404,0.339061,105790.0,105760.0,0.14183]
[1737730789405,0.330848,105790.0,105760.0,0.14183]
[1737730789603,0.09734729,105790.0,105770.0,0.311878]
[1737730789865,0.09734729,105790.0,105780.0,0.378132]
[1737730790492,0.421479,105810.0,105790.0,0.330842]
[1737730790683,0.23912329,105800.0,105790.0,0.14179]
[1737730790925,0.09734729,105800.0,105770.0,0.321878]
[1737730791116,0.09734729,105800.0,105770.0,0.453685]
[1737730791117,0.378121,105790.0,105770.0,0.453685]
[1737730791321,0.09734729,105780.0,105770.0,0.311885]
[1737730791687,0.23915029,105780.0,105770.0,0.12294749]
[1737730791868,0.23915029,105780.0,105770.0,0.07554749]
[1737730793242,0.23915029,105780.0,105770.0,0.21736449]
[1737730793446,0.23915029,105780.0,105770.0,0.07554749]
[1737730794067,0.23915029,105780.0,105770.0,0.00014749]
[1737730794068,0.41590453,105780.0,105770.0,0.00014749]
[1737730794699,0.38944891,105780.0,105770.0,0.00014749]
[1737730800266,1.88944891,105780.0,105770.0,0.00014749]
[1737730800422,0.23944891,105780.0,105770.0,0.00014749]
[1737730800854,0.38944891,105780.0,105770.0,0.00014749]
[1737730801184,0.23944891,105780.0,105770.0,0.00014749]
[1737730801387,0.23944891,105780.0,105770.0,0.14196449]
[1737730801598,0.09764591,105780.0,105770.0,0.14196449]
[1737730801806,0.14210162,105780.0,105770.0,0.27546449]
[1737730802004,0.09764591,105780.0,105770.0,0.26546449]
[1737730802650,0.09764591,105780.0,105770.0,0.27546449]
[1737730802651,0.00029862,105780.0,105770.0,0.27546449]
[1737730803056,0.037818,105830.0,105810.0,0.519788]
[1737730803244,0.23909729,105820.0,105810.0,0.189016]
[1737730803479,0.09734729,105820.0,105800.0,0.569517]
[1737730803656,0.09734729,105820.0,105800.0,0.0497]
[1737730803657,0.141763,105810.0,105800.0,0.0497]
[1737730803879,0.141798,105790.0,105770.0,0.400888]
[1737730804086,0.23914529,105790.0,105780.0,0.141803]
[1737730804299,0.23914529,105790.0,105770.0,0.73192149]
[1737730804507,0.23914529,105790.0,105780.0,0.141803]
[1737730804715,0.23914529,105790.0,105770.0,0.73191049]
[1737730804716,0.42820729,105790.0,105770.0,0.73191049]
[1737730804916,0.42820029,105790.0,105780.0,0.141803]
[1737730805152,0.09734729,105790.0,105780.0,0.141803]
[1737730805367,0.330797,105810.0,105800.0,0.141776]
[1737730805580,0.42814429,105810.0,105790.0,0.764524]
[1737730805792,0.57814429,105810.0,105800.0,0.141776]
[1737730806001,0.14175,105820.0,105810.0,0.141763]
[1737730806200,0.42810129,105820.0,105800.0,0.626521]